Workbook

Sheet 每日数据
A1: 全省智慧小区资源接入情况
A2: 序号 | B2: 地市 | C2: 治安提供的前端建成的小区数量 | D2: 之前接到省厅视频平台的小区个数 | E2: 之前 视频路数 | F2: 最新 视频路数 | G2: 视频路数 与之前对比 | H2: 最新视频 小区个数 | I2: 之前 人脸路数 | J2: 最新 人脸路数 | K2: 人脸路数 与之前对比 | L2: 之前人脸一周内有数据比例 | M2: 最新人脸一周内有数据比例 | N2: 人脸一周内有数据比例与之前对比 | O2: 人脸 小区个数 | P2: 之前 车辆路数 | Q2: 最新 车辆路数 | R2: 车辆路数 与之前对比 | S2: 之前车辆一周内有数据比例 | T2: 最新车辆一周内有数据比例 | U2: 车辆一周内有数据比例与之前对比 | V2: 车辆 小区个数
A3: 1 | B3: 石家庄 | C3: 6207 | D3: 5666 | E3: 21939 | F3: 22806 | G3: =F3-E3 -> 867 | H3: 5465 | I3: 10400 | J3: 12791 | K3: =J3-I3 -> 2391 | L3: 57.68% | M3: 82.76% | N3: =M3-L3 -> 25.08% | O3: 5767 | P3: 9355 | Q3: 11191 | R3: =Q3-P3 -> 1836 | S3: 52.76% | T3: 0.00% | U3: =T3-S3 -> -52.76% | V3: 5443
A4: 2 | B4: 承德 | C4: 1144 | D4: 1201 | E4: 3163 | F4: 3646 | G4: =F4-E4 -> 483 | H4: 1194 | I4: 1535 | J4: 2040 | K4: =J4-I4 -> 505 | L4: 72.90% | M4: 65.16% | N4: =M4-L4 -> -7.74% | O4: 709 | P4: 660 | Q4: 776 | R4: =Q4-P4 -> 116 | S4: 54.09% | T4: 56.72% | U4: =T4-S4 -> 2.63% | V4: 353
A5: 3 | B5: 张家口 | C5: 3068 | D5: 3069 | E5: 13592 | F5: 14188 | G5: 596 | H5: 3027 | I5: 9620 | J5: 9990 | K5: 370 | L5: 85.80% | M5: 85.80% | N5: 0.00% | O5: 2886 | P5: 5030 | Q5: 5320 | R5: 290 | S5: 91.99% | T5: 86.07% | U5: -5.92% | V5: 2218
A6: 4 | B6: 秦皇岛 | C6: 1324 | D6: 1323 | E6: 1016 | F6: 3027 | G6: 2011 | H6: 342 | I6: 7173 | J6: 7173 | K6: 0 | L6: 49.37% | M6: 28.16% | N6: -21.20% | O6: 1307 | P6: 418 | Q6: 1660 | R6: 1242 | S6: 81.10% | T6: 44.45% | U6: -36.65% | V6: 513
A7: 5 | B7: 唐山 | C7: 1955 | D7: 1956 | E7: 14146 | F7: 14861 | G7: 715 | H7: 1828 | I7: 13154 | J7: 13942 | K7: 788 | L7: 63.70% | M7: 59.93% | N7: -3.76% | O7: 1962 | P7: 5584 | Q7: 6108 | R7: 524 | S7: 70.18% | T7: 62.49% | U7: -7.69% | V7: 1494
A8: 6 | B8: 廊坊 | C8: 2251 | D8: 2337 | E8: 13011 | F8: 12586 | G8: -425 | H8: 2296 | I8: 3486 | J8: 3510 | K8: 24 | L8: 76.08% | M8: 77.36% | N8: 1.28% | O8: 566 | P8: 1180 | Q8: 1200 | R8: 20 | S8: 72.20% | T8: 76.66% | U8: 4.46% | V8: 484
A9: 7 | B9: 保定 | C9: 4001 | D9: 3968 | E9: 12979 | F9: 12972 | G9: -7 | H9: 3845 | I9: 8932 | J9: 8474 | K9: -458 | L9: 76.09% | M9: 67.46% | N9: -8.63% | O9: 3592 | P9: 5881 | Q9: 6952 | R9: 1071 | S9: 80.02% | T9: 71.19% | U9: -8.83% | V9: 3235
A10: 8 | B10: 沧州 | C10: 2506 | D10: 2496 | E10: 21374 | F10: 19815 | G10: -1559 | H10: 2343 | I10: 6787 | J10: 6780 | K10: -7 | L10: 87.48% | M10: 87.94% | N10: 0.47% | O10: 1673 | P10: 2588 | Q10: 2588 | R10: 0 | S10: 80.56% | T10: 76.82% | U10: -3.75% | V10: 1320
A11: 9 | B11: 衡水 | C11: 1553 | D11: 1552 | E11: 5870 | F11: 4667 | G11: -1203 | H11: 1424 | I11: 2549 | J11: 2278 | K11: -271 | L11: 85.48% | M11: 84.75% | N11: -0.74% | O11: 900 | P11: 1742 | Q11: 1446 | R11: -296 | S11: 88.06% | T11: 87.28% | U11: -0.78% | V11: 819
A12: 10 | B12: 邢台 | C12: 2090 | D12: 2155 | E12: 11693 | F12: 12917 | G12: 1224 | H12: 1821 | I12: 7898 | J12: 7743 | K12: -155 | L12: 27.42% | M12: 61.81% | N12: 34.38% | O12: 1699 | P12: 1015 | Q12: 2954 | R12: 1939 | S12: 40.20% | T12: 81.72% | U12: 41.52% | V12: 1170
A13: 11 | B13: 邯郸 | C13: 2840 | D13: 2843 | E13: 13999 | F13: 13955 | G13: -44 | H13: 2840 | I13: 7639 | J13: 7835 | K13: 196 | L13: 77.50% | M13: 67.71% | N13: -9.79% | O13: 2923 | P13: 4367 | Q13: 4367 | R13: 0 | S13: 75.96% | T13: 70.78% | U13: -5.18% | V13: 2462
A14: 12 | B14: 冀中 | C14: 72 | D14: 73 | E14: 671 | F14: 671 | G14: 0 | H14: 65 | I14: 196 | J14: 552 | K14: 356 | L14: 0.00% | M14: 0.00% | N14: 0.00% | O14: 54 | P14: 0 | Q14: 2 | R14: 2 | S14: 0.00% | T14: 0.00% | U14: 0.00% | V14: 2
A15: 13 | B15: 雄安 | C15: 225 | D15: 239 | E15: 5218 | F15: 5171 | G15: -47 | H15: 237 | I15: 4618 | J15: 4437 | K15: -181 | L15: 67.63% | M15: 75.81% | N15: 8.18% | O15: 242 | P15: 319 | Q15: 273 | R15: -46 | S15: 49.22% | T15: 32.23% | U15: -16.98% | V15: 121
A16: 14 | B16: 定州 | C16: 265 | D16: 268 | E16: 768 | F16: 758 | G16: -10 | H16: 261 | I16: 0 | J16: 0 | K16: 0 | L16: 0.00% | M16: 0.00% | N16: 0.00% | O16: 0 | P16: 0 | Q16: 0 | R16: 0 | S16: 0.00% | T16: 0.00% | U16: 0.00% | V16: 0
A17: 15 | B17: 辛集 | C17: 168 | D17: 173 | E17: 709 | F17: 677 | G17: -32 | H17: 164 | I17: 354 | J17: 575 | K17: 221 | L17: 53.11% | M17: 73.04% | N17: 19.94% | O17: 165 | P17: 369 | Q17: 410 | R17: 41 | S17: 87.26% | T17: 1.22% | U17: -86.04% | V17: 154
B18: 合计 | C18: =SUM(C3:C17) -> 29669 | D18: =SUM(D3:D17) -> 29319 | E18: =SUM(E3:E17) -> 140148 | F18: 142717 | G18: 2569 | H18: 27152 | I18: 84341 | J18: 88120 | K18: 3779 | L18: 66.87% | M18: =AVERAGE(M3:M17) -> 61.18% | N18: -5.70% | O18: =SUM(O3:O17) -> 24445 | P18: 38508 | Q18: 45247 | R18: 6739 | S18: 71.57% | T18: =AVERAGE(T3:T17) -> 49.84% | U18: -21.72% | V18: =SUM(V3:V17) -> 19788
B19: 之前日期：2021年12月13日
B20: 最新日期：2022年1月25日

Sheet 一周无数据 (hidden)
A1: 全省智慧小区资源接入情况
A2: 序号 | B2: 市 | C2: 各地市上报数量 | D2: 目前接入情况
D3: 小区个数 | E3: 与昨日相比 | F3: 视频路数 | G3: 名称不一致小区个数 | H3: 人脸路数 | I3: 人脸数据合格率/天 | J3: 人脸一周数据合格率 | K3: 车辆路数 | L3: 车辆数据合格率/天 | M3: 车辆一周数据合格率 | O3: 人脸一周无数据数量 | P3: 车辆一周无数据数量
A4: 1 | B4: 石家庄 | C4: 5525 | D4: =#REF! ->  | E4: =#REF! ->  | F4: =#REF! ->  | G4: =#REF! ->  | H4: =#REF! ->  | I4: =#REF! ->  | J4: =(H4-O4)/H4 ->  | K4: =#REF! ->  | L4: =#REF! ->  | M4: =(K4-P4)/K4 ->  | N4: 石家庄 | O4: 107 | P4: 29.4
A5: 2 | B5: 承德 | C5: 1144 | D5: =#REF! ->  | E5: =#REF! ->  | F5: =#REF! ->  | G5: =#REF! ->  | H5: =#REF! ->  | K5: =#REF! ->  | N5: 承德
A6: 3 | B6: 张家口 | C6: 3065 | D6: =#REF! ->  | E6: =#REF! ->  | F6: =#REF! ->  | G6: =#REF! ->  | H6: =#REF! ->  | I6: =#REF! ->  | J6: =(H6-O6)/H6 ->  | K6: =#REF! ->  | N6: 张家口
A7: 4 | B7: 秦皇岛 | C7: 1323 | D7: =#REF! ->  | E7: =#REF! ->  | F7: =#REF! ->  | G7: =#REF! ->  | H7: =#REF! ->  | I7: =#REF! ->  | K7: =#REF! ->  | N7: 秦皇岛
A8: 5 | B8: 唐山 | C8: 1955 | D8: =#REF! ->  | E8: =#REF! ->  | F8: =#REF! ->  | G8: =#REF! ->  | H8: =#REF! ->  | K8: =#REF! ->  | N8: 唐山
A9: 6 | B9: 廊坊 | C9: 2105 | D9: =#REF! ->  | E9: =#REF! ->  | F9: =#REF! ->  | G9: =#REF! ->  | H9: =#REF! ->  | I9: =#REF! ->  | K9: =#REF! ->  | L9: =#REF! ->  | M9: =(K9-P9)/K9 ->  | N9: 廊坊 | O9: 311 | P9: 13.8
A10: 7 | B10: 保定 | C10: 3902 | D10: =#REF! ->  | E10: =#REF! ->  | F10: =#REF! ->  | G10: =#REF! ->  | H10: =#REF! ->  | I10: =#REF! ->  | K10: =#REF! ->  | N10: 保定
A11: 8 | B11: 沧州 | C11: 2467 | D11: =#REF! ->  | E11: =#REF! ->  | F11: =#REF! ->  | G11: =#REF! ->  | H11: =#REF! ->  | I11: 0.00% | K11: =#REF! ->  | L11: 0.00% | N11: 沧州 | O11: 1501 | P11: 223
A12: 9 | B12: 衡水 | C12: 1537 | D12: =#REF! ->  | E12: =#REF! ->  | F12: =#REF! ->  | G12: =#REF! ->  | H12: =#REF! ->  | I12: =#REF! ->  | K12: =#REF! ->  | L12: =#REF! ->  | N12: 衡水 | O12: 714 | P12: 224.8
A13: 10 | B13: 邢台 | C13: 2079 | D13: =#REF! ->  | E13: =#REF! ->  | F13: =#REF! ->  | G13: =#REF! ->  | H13: =#REF! ->  | K13: =#REF! ->  | N13: 邢台
A14: 11 | B14: 邯郸 | C14: 2840 | D14: =#REF! ->  | E14: =#REF! ->  | F14: =#REF! ->  | G14: =#REF! ->  | H14: =#REF! ->  | I14: =#REF! ->  | J14: =(H14-O14)/H14 ->  | K14: =#REF! ->  | N14: 邯郸
A15: 12 | B15: 冀中 | C15: 72 | D15: =#REF! ->  | E15: =#REF! ->  | F15: =#REF! ->  | G15: =#REF! ->  | H15: =#REF! ->  | K15: =#REF! ->  | N15: 冀中
A16: 13 | B16: 雄安 | C16: 225 | D16: =#REF! ->  | E16: =#REF! ->  | F16: =#REF! ->  | G16: =#REF! ->  | H16: =#REF! ->  | K16: =#REF! ->  | N16: 雄安
A17: 14 | B17: 定州 | C17: 263 | D17: =#REF! ->  | E17: =#REF! ->  | F17: =#REF! ->  | G17: =#REF! ->  | H17: =#REF! ->  | K17: =#REF! ->  | N17: 定州
A18: 15 | B18: 辛集 | C18: 168 | D18: =#REF! ->  | E18: =#REF! ->  | F18: =#REF! ->  | G18: =#REF! ->  | H18: =#REF! ->  | I18: =#REF! ->  | K18: =#REF! ->  | L18: =#REF! ->  | M18: =(K18-P18)/K18 ->  | N18: 辛集
B19: 合计 | C19: =SUM(C4:C18) -> 28670 | I19: =#REF! ->  | K19: =SUM(K4:K18) ->  | L19: =#REF! ->  | M19: =(K19-P19)/K19 ->  | O19: 2633 | P19: 491
B20: =#REF! -> 

Sheet 车辆无数据 (hidden)
B3: 智慧社车辆无数据统计
B4: 地市 | C4: 4.21 | D4: 4.22 | E4: 4.24 | F4: 4.25 | G4: 4.26 | H4: 4.27 | I4: 4.28 | J4: 4.29 | K4: 4.3
B5: 石家庄 | C5: 9 | D5: 26 | E5: 37 | F5: 38 | G5: 37 | L5: =(SUM(C5:G5))/5 -> 29.4
B6: 承德 | L6: =(SUM(C6:G6))/5 -> 0
B7: 张家口 | L7: 0
B8: 秦皇岛 | L8: 0
B9: 唐山 | L9: 0
B10: 廊坊 | C10: 13 | D10: 13 | E10: 14 | F10: 16 | G10: 13 | L10: 13.8
B11: 保定 | L11: 0
B12: 沧州 | C12: 223 | D12: 223 | E12: 223 | F12: 223 | G12: 223 | L12: 223
B13: 衡水 | C13: 225 | D13: 215 | E13: 222 | F13: 232 | G13: 230 | L13: 224.8
B14: 邢台 | L14: 0
B15: 邯郸 | L15: 0
B16: 冀中 | L16: 0
B17: 雄安 | L17: 0
B18: 定州 | L18: 0
B19: 辛集 | L19: 0
B20: 合计 | C20: =SUM(C5:C19) -> 470 | D20: 477 | E20: 496 | F20: 509
